Cogmind - Beta 17 @@@ ROGUE MODE // 2026.07.13 @ 10:28:48 Player: Skysub Result: Destroyed by G-34 Mercenary with Small Laser Performance ------------- Evolutions (1) 500 Regions Visited (2) 400 Robots Destroyed (8) 40 Value Destroyed (135) 135 Prototype IDs (1) 20 Alien Tech Used (0) 0 Bonus (5450) 5450 TOTAL SCORE: 6545 Bonus ------- Pacifist 200 Prayed to X0-1V1 5000 Major X0-1V1 Interference 250 Cogmind --------- Core Integrity 0/300 Matter 515/700 Energy 100/100 System Corruption 0% Temperature Cool (6) Movement Core (50) Location -9/Materials Parts ------- > --- POWER (1) -------- (None) > --- PROPULSION (4) --- (None) > --- UTILITY (2) ------ Terrain Scan Processor > --- WEAPON (3) ------- (None) > --- INVENTORY (5) ---- Light Ion Engine Improved Ion Engine Heat Sink Medium Armor Plating Beam Cannon Peak State ------------ > --- POWER ------------ (None) > --- PROPULSION ------- (None) > --- UTILITY ---------- Terrain Scan Processor X0-1V1's Piety Tracker > --- WEAPON ----------- (None) > --- INVENTORY -------- Light Ion Engine Beam Cannon [Rating: 15] Favorites ----------- Power Improved Ion Engine Engine Improved Ion Engine Propulsion Flight Unit Flight Unit Flight Unit Utility Terrain Scan Processor Device X0-1V1's Piety Tracker Processor Terrain Scan Processor Protection Medium Armor Plating Weapon Beam Cannon Energy Cannon Beam Cannon Build | -11 -10 -9 ------- Run | Yrd Mat Mat Slots Evolved 2 | . . 2 Power . | . . . Propulsion 2 | . . 2 Utility . | . . . Weapon . | . . . Parts Attached 9 | 1 2 6 Power 2 | 1 . 1 Engine 2 | 1 . 1 Core . | . . . Reactor . | . . . Propulsion 2 | . . 2 Treads . | . . . Leg . | . . . Wheel . | . . . Hover . | . . . Flight 2 | . . 2 Utility 4 | . 2 2 Device 2 | . 1 1 Storage . | . . . Processor 1 | . 1 . Hackware . | . . . Protection 1 | . . 1 Artifact . | . . . Weapon 1 | . . 1 Energy Gun . | . . . Energy Cannon 1 | . . 1 Ballistic Gun . | . . . Ballistic Cannon . | . . . Launcher . | . . . Special Weapon . | . . . Impact Weapon . | . . . Slashing Weapon . | . . . Piercing Weapon . | . . . Special Melee Weapon . | . . . Unidentified Prototypes 1 | . 1 . Parts Lost 3 | . . 3 Power . | . . . Propulsion 2 | . . 2 Utility 1 | . . 1 Weapon . | . . . Highest Loss Streak 2 | . . 2 To Critical Strikes . | . . . Average Backups 2 | . 1 3 Power 1 | . 1 1 Propulsion . | . . . Utility . | . . 1 Weapon . | . . . Tool/Special . | . . . Unused Backups 1 | . . 1 Power . | . . . Propulsion . | . . . Utility 1 | . . 1 Weapon . | . . . Tool/Special . | . . . Average Slot Usage (%) 16 | . 12 20 Flight 1 | . . 2 Device 2 | . 2 2 Processor 10 | . 10 10 Protection 1 | . . 2 Energy Cannon 1 | . . 3 Peak Build Rating 15 | 1 15 15 Average Rating 4 | . 3 5 On Entrance . | . . 2 Avg Prop Armor Cover (%) . | . . . Naked Turns 28 | . 28 . Heaviest Build 10 | . 1 10 Greatest Support 8 | 3 3 8 Greatest Overweight (x) 3 | . . 3 Average Overweight (x) . | . . . Largest Inventory Capacity 5 | 5 5 5 Average Capacity 5 | 5 5 5 Most Carried 5 | 1 2 5 Average Carried 2 | . 1 3 Final Capacity 5 | 5 5 5 Final Carried 5 | 1 2 5 Class Distribution -------------------- 100% | Mutant Dominant Class ---------------- Mutant | -10/Materials Mutant | -9/Materials Resources | -11 -10 -9 ----------- Run | Yrd Mat Mat Matter Collected 479 | 210 . 269 Remotely . | . . . Salvage Created 229 | . . 229 Parts 16 | . . 16 Haulers Intercepted . | . . . Recyclers Shooed . | . . . Parts Field Recycled . | . . . Retrieved Matter . | . . . Parts Self-Destructed . | . . . Prevented . | . . . Parts Restored . | . . . Kills | -11 -10 -9 ------- Run | Yrd Mat Mat Combat Hostiles Destroyed 7 | . . 7 Cannons 7 | . . 7 Classes Destroyed 4 | . . 4 Recycler 1 | . . 1 Swarmer 5 | . . 5 Grunt 1 | . . 1 Sentry 1 | . . 1 Best Kill Streak 8 | . . 8 Combat Bots Only 7 | . . 7 Max Kills in Single Turn 1 | . . 1 Gunslinging . | . . . Exploded . | . . . Melee . | . . . Uniques/NPCs Destroyed . | . . . Combat | -11 -10 -9 -------- Run | Yrd Mat Mat Hostile Shots Fired 114 | . 1 113 Missed 56 | . 1 55 Hits 58 | . . 58 Projectile 58 | . . 58 Critical Strikes 2 | . . 2 Damage Taken 553 | . 9 544 Core 359 | . 4 355 Absorbed by Shields . | . . . Core Remaining (%) 100 | 100 100 . Volleys Fired 17 | . . 17 Largest 1 | . . 1 Hottest 60 | . . 60 Shots Fired 17 | . . 17 Gun . | . . . Cannon 17 | . . 17 Launcher . | . . . Special . | . . . Kinetic . | . . . Thermal 17 | . . 17 Explosive . | . . . Electromagnetic . | . . . Robot Hit Streak 8 | . . 8 Robot Miss Streak 2 | . . 2 Penetration Max . | . . . Secondary Targets . | . . . Shots Hit Robots 14 | . . 14 Core Hits 11 | . 1 10 Critical Kills . | . . . Critical Parts Destroyed . | . . . Critical Strikes . | . . . Melee Attacks . | . . . Impact . | . . . Slashing . | . . . Piercing . | . . . Sneak Attacks . | . . . Combat Hostiles . | . . . Follow-up Attacks . | . . . Damage Inflicted 267 | . 20 247 Guns . | . . . Cannons 247 | . . 247 Explosions . | . . . Melee . | . . . Ramming 20 | . 20 . Kinetic . | . . . Thermal 247 | . . 247 Explosive . | . . . Electromagnetic . | . . . Impact . | . . . Slashing . | . . . Piercing . | . . . Highest Corruption 1 | . 1 . Average Corruption 1 | . 1 . Corruption Purged . | . . . Corruption Blocked . | . . . Overload Shots . | . . . Overflow Damage . | . . . Projectiles . | . . . Explosions . | . . . Melee . | . . . Knockbacks . | . . . Impact . | . . . Kinetic . | . . . Secondary . | . . . Self-Inflicted Damage 9 | . 9 . Shots . | . . . Rammed 5 | . 5 . Targets Rammed 5 | . 5 . Kicked . | . . . Crushed . | . . . Highest Temperature 160 | . . 160 Average Temperature 49 | . . 49 Received Heat Transfer 150 | . . 150 Siege Activations . | . . . Martial Activations . | . . . Shielding Activations . | . . . Robots Disrupted . | . . . Combat Hostiles . | . . . Robots Corrupted . | . . . Combat Hostiles . | . . . Parts Fried . | . . . Impact Corruptions . | . . . Robots Melted . | . . . Combat Hostiles . | . . . Parts Melted 1 | . . 1 Heat Transferred 518 | . . 518 Parts Sabotaged . | . . . Parts Stolen . | . . . Parts Stripped . | . . . Power Chain Reactions . | . . . Alert | -11 -10 -9 ------- Run | Yrd Mat Mat Maximum Alert Level 1 | . . 1 Low Security (%) 93 | 100 100 87 Level 1 6 | . . 12 Level 2 . | . . . Level 3 . | . . . Level 4 . | . . . Level 5 . | . . . High Security . | . . . Max Security . | . . . Peak Influence 215 | . 11 215 Initial . | . . . Average 50 | . 2 96 Influence Increases 302 | . 22 280 Destroy 0b10 Robot/C 140 | . . 140 Destroy 0b10 Robot/NC 5 | . . 5 Destroy Leader 40 | . . 40 Successful Hack 27 | . 22 5 Lose Combat Pursuer 90 | . . 90 Influence Decreases 97 | . 22 75 Time Decay 77 | . 22 55 Lost Part 20 | . . 20 Squads Dispatched 2 | . 1 1 Investigation 2 | . 1 1 Extermination . | . . . Reinforcement . | . . . Assault . | . . . Garrison . | . . . Intercept . | . . . Searches Triggered . | . . . Construction Impeded . | . . . Haulers Reinforced . | . . . Active Scanning Responses . | . . . Cargo Convoy Interrupts . | . . . Stealth | -11 -10 -9 --------- Run | Yrd Mat Mat Distress Signals 3 | . . 3 Communications Jammed . | . . . Distress Signals . | . . . Times Spotted 31 | . 7 24 Peak Tracking Total 13 | . 6 13 Tactical Retreats 3 | . . 3 Traps | -11 -10 -9 ------- Run | Yrd Mat Mat Traps Triggered . | . . . Indirectly . | . . . Trap Hack Attempts . | . . . Triggered . | . . . Disarmed . | . . . Reprogrammed . | . . . Reused . | . . . Traps Extracted . | . . . Installed . | . . . Triggered . | . . . Machines | -11 -10 -9 ---------- Run | Yrd Mat Mat Machines Disabled . | . . . Max in Single Turn . | . . . Machines Repaired . | . . . Machines Dismantled . | . . . Machines Sabotaged . | . . . Overloaded Fab Kills . | . . . Hacking | -11 -10 -9 --------- Run | Yrd Mat Mat Machines Accessed 5 | . 4 1 Terminals 5 | . 4 1 Fabricators . | . . . Repair Stations . | . . . Recycling Units . | . . . Scanalyzers . | . . . Garrison Access . | . . . Total Hacks 20 | . 17 3 Successful 8 | . 6 2 Failed 12 | . 11 1 Catastrophic 1 | . 1 . Database Lockouts . | . . . Manual 16 | . 15 1 Terminals 20 | . 17 3 Fabricators . | . . . Repair Stations . | . . . Recycling Units . | . . . Scanalyzers . | . . . Garrison Access . | . . . Terminal Hacks 4 | . 3 1 Terminal Index 1 | . 1 . Locate Traps 1 | . 1 . Zone Layout 2 | . 1 1 Fabricator Hacks . | . . . Repair Station Hacks . | . . . Recycling Unit Hacks . | . . . Scanalyzer . | . . . Garrison Access Hacks . | . . . Unauthorized Hacks 4 | . 3 1 Terminals 4 | . 3 1 Botnet 4 | . 3 1 Fabricators . | . . . Repair Stations . | . . . Recycling Units . | . . . Scanalyzers . | . . . Garrison Access . | . . . Data Cores Recovered . | . . . Used . | . . . Hacking Detections 5 | . 4 1 Full Trace Events 5 | . 4 1 Feedback Events 1 | . 1 . Corruption 1 | . 1 . Feedback Blocked . | . . . Robot Schematics Acquired . | . . . Robots Built . | . . . Authchips . | . . . Time . | . . . Total Robot Build Rating . | . . . Part Schematics Acquired . | . . . Parts Built . | . . . Authchips . | . . . Time . | . . . Total Part Build Rating . | . . . Part Studies Acquired . | . . . Parts Repaired . | . . . Time . | . . . Parts Recycled . | . . . Recycled Matter . | . . . Retrieved Matter . | . . . Retrieved Components . | . . . Parts Scanalyzed . | . . . Part Schematics Acquired . | . . . Parts Damaged . | . . . Bothacking | -11 -10 -9 ------------ Run | Yrd Mat Mat Used RIF Installer . | . . . Robots Hacked . | . . . Non-combat . | . . . Combat . | . . . Robot Hacks Applied . | . . . Relay Couplers Released . | . . . Fabnet Peak Effective % . | . . . Robots Rewired . | . . . Allies Hacked . | . . . Hacks Repelled . | . . . Allies | -11 -10 -9 -------- Run | Yrd Mat Mat Total Allies . | . . . Largest Group . | . . . Highest-Rated Group . | . . . Highest-Rated Ally . | . . . Total Orders . | . . . Ally Attacks . | . . . Total Damage . | . . . Kills . | . . . Allies Corrupted . | . . . Allies Melted . | . . . X0-1V1 Amusement Gains 20 | . 10 10 Good Acts 8 | . 3 5 Bad Acts 3 | . . 3 Intel | -11 -10 -9 ------- Run | Yrd Mat Mat Active Infowar (turns) . | . . . Robot Analysis Total . | . . . Derelict Logs Recovered . | . . . Drone Launches . | . . . Drone Recoveries . | . . . Exploration | -11 -10 -9 ------------- Run | Yrd Mat Mat Turns Passed 298 | 14 131 153 Spaces Moved 428 | 23 179 226 Core 354 | 23 179 152 Treads . | . . . Legs . | . . . Wheels . | . . . Hover . | . . . Flight 74 | . . 74 Fastest Speed 37 | 50 50 37 Average Speed 48 | 50 50 47 Slowest Speed 200 | 50 50 200 Overloaded Moves . | . . . Propulsion Burnouts . | . . . Robots Hopped 2 | . . 2 Potential Cave-ins . | . . . Cave-ins Triggered . | . . . Exploration Rate (%) 28 | 3 48 35 Regions Visited 2 Branch Regions . Pre-discovered Areas . | . . . Known Exits Taken . | . . . Unknown Exits Taken 2 | 1 1 . Scrap Searched . | . . . Spaces Dug . | . . . Terrain Destroyed . | . . . Melee . | . . . Projectile . | . . . AOE . | . . . Terrain Rammed . | . . . Walls Destroyed . | . . . Machines Disabled . | . . . Actions | -11 -10 -9 --------- Run | Yrd Mat Mat Total 495 | 24 219 252 Wait 32 | . 32 . Move 422 | 22 178 222 Hop 2 | . . 2 Pick Up 3 | . 1 2 Fast Attach 7 | 1 2 4 Attach 2 | . . 2 Detach 5 | 1 1 3 Swap . | . . . Drop . | . . . Fire 17 | . . 17 Melee . | . . . Ram 5 | . 5 . Kick . | . . . Crush . | . . . Escape Stasis . | . . . Rewire . | . . . Trap . | . . . Miscellaneous . | . . . Route ------- -11/Scrapyard -10/Materials (discovered 2 exits: *Mat / [*Min]) -9/Materials (discovered 1 exit: [*Min]) History --------- Turn | Location | Event 5 | -11/Scrapyard | Discovered new exit (range 15) 15 | -11/Scrapyard | Entered Materials 82 | -10/Materials | Prayed at D.C.S.S. Altar Unit 97 | -10/Materials | Ranged accuracy permanently improved by X0-1V1 (+5%; -50 max core) 115 | -10/Materials | Discovered new exit (range 5) 140 | -10/Materials | Discovered new exit (range 14) 146 | -10/Materials | Entered another Materials area 146 | -9/Materials | Evolved 2 slots: Propulsion x2 156 | -9/Materials | X0-1V1 released a cloud of subatomizers 180 | -9/Materials | X0-1V1 upgraded hostiles (x1) 215 | -9/Materials | Weapon slot count temporarily expanded by X0-1V1 (+1) 244 | -9/Materials | Core integrity fell below 50% 258 | -9/Materials | Destroyed 7 combat bots 258 | -9/Materials | Melee accuracy permanently improved by X0-1V1 (+5%; -50 max core) 277 | -9/Materials | Discovered new exit (range 15) 280 | -9/Materials | Core integrity fell below 20% 299 | -9/Materials | Destroyed by G-34 Mercenary with Small Laser Last Messages --------------- 00237_ S-10 Pest destroyed. 00238_ K-01 Serf collects debris. 00242_ Acquired Flight Unit. 00243_ K-01 Serf collects debris. 00245_ Flight Unit destroyed. 00250_ X0-1V1 thinks you're pretty cool, for now (+55 heat dissipation). X0-1V1's Piety Tracker suddenly appears amidst shimmering waves of color. 00258_ X0-1V1: "Any self-respecting god will have their pound of flesh." (permanent -50 core integrity, +5% melee accuracy) 00259_ W-16 Scout sends out distress signal. 00265_ Acquired 196 matter. 00266_ K-01 Serf collects debris. 00272_ Flight Unit destroyed. 00277_ EXIT=FOUND 00287_ Energy generation returns to normal. 00298_ Critical hit (Burn: +37). 00299_ X0-1V1 snickers! Map ----- +----------------------------------------------------+ | | | ?????????????????######??????????????????????????? | | ????????????????# #??????????????????????????? | | ????????????????#""" #??????????????????????????? | | ????????????????#""" #??????????????????????????? | | ????????????????#""" #??????????????????????????? | | ????????????????# #??????????????????????????? | | ????????????????# ??###########???????????????? | | ???????????"????##+##??# #???????????????? | | ?????????#"|????# #### """ !]] #???????????????? | | ????????#"" ????# + """ !]] #???????????????? | | ????????# ???# #### """ ]]! #???????????????? | | ????????#